Cogmind - Beta 11 X6 @@@ ROGUE MODE // 2021.07.18 @ 01:30:34 // Winter2019/RPGLIKE Player: Kenzurith Result: Smashed by cave-in Performance ------------- Evolutions (9) 4500 Regions Visited (33) 6600 Robots Destroyed (324) 1620 Value Destroyed (18055) 18055 Prototype IDs (249) 4980 Alien Tech Used (4) 800 Bonus (40591) 40591 TOTAL SCORE: 77146 Bonus ------- High Alert Combat Kills 4354 Follower Combat Kills 1302 Aligned with FarCom 300 Met Data Miner 300 Used Data Conduit 3000 Met Zhirov 300 Met Warlord at Base 500 MAIN.C Attacked Warlord 500 Warlord Defense Kill 2790 Found Hidden Lab 3000 Decrypted A0 Command 3000 Pursued by Intercept 1000 Destroyed MAIN.C Guards 500 Met MAIN.C 5000 Destroyed MAIN.C Shell 5000 Destroyed MAIN.C 10000 Friendly Fire -255 Cogmind --------- Core Integrity 0/1400 Matter 275/300 Energy 857/1440 System Corruption 0% Temperature Cool (4) Movement Walking (95) Location -1/Command Parts ------- > --- POWER (3) -------- Zero-point Reactor Vortex Chain Reactor > --- PROPULSION (4) --- Enhanced Biometal Leg Enhanced Biometal Leg Potential Leg Potential Leg > --- UTILITY (14) ----- Experimental Energy Well Makeshift Terrain Scanner Experimental Target Analyzer Advanced Armor Integrity Analyzer Advanced Kinecellerator Advanced Weapon Cycler Advanced Reaction Control System Advanced Phase Shifter Centrium Heavy Armor Plating Experimental Focal Shield Beam Splitter EM Disruption Field AEGIS Remote Shield > --- WEAPON (4) ------- Warp Cannon Helical Railgun Helical Railgun Helical Railgun > --- INVENTORY (6) ---- Matter Compressor (250) Advanced Particle Charger EMDS Multirail Fusion Bomb Launcher Peak State ------------ > --- POWER ------------ Zero-point Reactor Vortex Chain Reactor > --- PROPULSION ------- Enhanced Biometal Leg Enhanced Biometal Leg Potential Leg Potential Leg > --- UTILITY ---------- Experimental Energy Well Makeshift Terrain Scanner Experimental Target Analyzer Advanced Armor Integrity Analyzer Advanced Kinecellerator Advanced Weapon Cycler Advanced Reaction Control System Advanced Phase Shifter Centrium Heavy Armor Plating Experimental Focal Shield Beam Splitter EM Disruption Field AEGIS Remote Shield > --- WEAPON ----------- Helical Railgun Helical Railgun Helical Railgun Multirail > --- INVENTORY -------- Matter Compressor Advanced Particle Charger EMDS Warp Cannon Fusion Bomb Launcher [Rating: 235] Favorites ----------- Power Vortex Chain Reactor Engine Improved Ion Engine Power Core Light Nuclear Core Reactor Vortex Chain Reactor Propulsion Potential Leg Leg Potential Leg Utility Advanced Reaction Control System Device Advanced Reaction Control System Storage Matter Compressor Processor Improved Target Analyzer Hackware Quantum Router Protection Centrium Heavy Armor Plating Weapon Helical Railgun Energy Gun High-powered Electrolaser Energy Cannon Warp Cannon Ballistic Gun Helical Railgun Ballistic Cannon Heavy Linear Accelerator Launcher Rocket Launcher Special Weapon Improved Plasma Cutter Slashing Weapon Phasing Sabre Build | -11 -10 -10 -9 -9 -9 -8 -8 -7 -7 -7 -7 -6 -6 -6 -6 -6 -5 -5 -5 -5 -5 -4 -4 -4 -4 -4 -3 -3 -3 -3 -2 -1 -1 ------- Run | Scr Mat Min Mat Min Exi Min Mat Fac Low Low Dat Pro Fac Low Low Zio Pro Fac Upp Upp War Pro Fac Upp Upp Zhi Pro Res Arm Lab Res Acc Com Slots Evolved 20 | 2 . 1 . . . 1 2 . . 1 . . 2 . 1 1 1 1 . 1 2 1 . . . . 1 2 . . . . . Power 2 | . . . . . . . . . . . . . . . . . . 1 . . . . . . . . . 1 . . . . . Propulsion 3 | 1 . . . . . . . . . . . . . . . . . . . . 2 . . . . . . . . . . . . Utility 13 | . . 1 . . . 1 2 . . 1 . . 2 . 1 1 . . . 1 . 1 . . . . 1 1 . . . . . Weapon 2 | 1 . . . . . . . . . . . . . . . . 1 . . . . . . . . . . . . . . . . Parts Attached 239 | 3 2 2 3 . 2 3 9 17 2 2 2 3 4 6 1 3 3 11 2 3 23 3 17 4 2 2 4 19 5 11 14 10 42 Power 20 | . . . 1 . . . 1 2 . 1 . 1 . . . 1 . 5 . 1 1 . . . . . . 3 1 . . 1 1 Engine 9 | . . . 1 . . . 1 2 . . . . . . . . . 4 . 1 . . . . . . . . . . . . . Core 4 | . . . . . . . . . . 1 . 1 . . . 1 . 1 . . . . . . . . . . . . . . . Reactor 7 | . . . . . . . . . . . . . . . . . . . . . 1 . . . . . . 3 1 . . 1 1 Propulsion 9 | 1 . . . . 2 . . . . . . . . . . . . . . . 2 . 1 . . . . 1 . . . . 2 Treads . | . . . . . . . . . . . . . . . . . . . . . . . . . . . . . . . . . . Leg 9 | 1 . . . . 2 . . . . . . . . . . . . . . . 2 . 1 . . . . 1 . . . . 2 Wheel . | . . . . . . . . . . . . . . . . . . . . . . . . . . . . . . . . . . Hover . | . . . . . . . . . . . . . . . . . . . . . . . . . . . . . . . . . . Flight . | . . . . . . . . . . . . . . . . . . . . . . . . . . . . . . . . . . Utility 117 | . 2 1 . . . 1 4 5 2 1 . 2 4 3 1 2 . 4 2 1 7 2 12 4 2 2 4 10 1 5 7 3 23 Device 77 | . 1 . . . . . 2 1 2 1 . 1 1 2 . 1 . 1 1 . 4 1 11 3 2 2 3 7 1 2 7 3 17 Storage 4 | . . . . . . . . . . . . . . . . . . . . . . 1 . . . . . . . 2 . . 1 Processor 15 | . . . . . . 1 1 1 . . . . 1 1 1 1 . 2 . 1 1 . . . . . 1 2 . . . . 1 Hackware 1 | . . . . . . . . . . . . . . . . . . . . . . . . . . . . . . 1 . . . Protection 20 | . 1 1 . . . . 1 3 . . . 1 2 . . . . 1 1 . 2 . 1 1 . . . 1 . . . . 4 Artifact . | . . . . . . . . . . . . . . . . . . . . . . . . . . . . . . . . . . Weapon 93 | 2 . 1 2 . . 2 4 10 . . 2 . . 3 . . 3 2 . 1 13 1 4 . . . . 5 3 6 7 6 16 Energy Gun 14 | . . 1 . . . . 1 3 . . 1 . . 1 . . 1 1 . . 1 . . . . . . . . 3 1 . . Energy Cannon 18 | . . . . . . . . 1 . . . . . . . . . . . . . . 1 . . . . 3 1 2 2 4 4 Ballistic Gun 47 | 2 . . 2 . . 2 2 3 . . . . . 1 . . 1 1 . . 8 1 2 . . . . 2 2 1 4 2 11 Ballistic Cannon 1 | . . . . . . . . . . . . . . . . . . . . . . . . . . . . . . . . . 1 Launcher 3 | . . . . . . . 1 1 . . . . . . . . . . . . . . 1 . . . . . . . . . . Special Weapon 2 | . . . . . . . . . . . . . . . . . . . . . 2 . . . . . . . . . . . . Impact Weapon . | . . . . . . . . . . . . . . . . . . . . . . . . . . . . . . . . . . Slashing Weapon 8 | . . . . . . . . 2 . . 1 . . 1 . . 1 . . 1 2 . . . . . . . . . . . . Piercing Weapon . | . . . . . . . . . . . . . . . . . . . . . . . . . . . . . . . . . . Special Melee Weapon . | . . . . . . . . . . . . . . . . . . . . . . . . . . . . . . . . . . Unidentified Prototypes 18 | . . . . . . . 1 2 . . . . . . . . . . . . 1 . 1 . . 1 . 2 . 7 . . 3 Parts Lost 4 | . . . . . . . 1 1 . . 1 1 . . . . . . . . . . . . . . . . . . . . . Power 1 | . . . . . . . . . . . 1 . . . . . . . . . . . . . . . . . . . . . . Propulsion . | . . . . . . . . . . . . . . . . . . . . . . . . . . . . . . . . . . Utility 3 | . . . . . . . 1 1 . . . 1 . . . . . . . . . . . . . . . . . . . . . Weapon . | . . . . . . . . . . . . . . . . . . . . . . . . . . . . . . . . . . Highest Loss Streak 1 | . . . . . . . 1 1 . . 1 1 . . . . . . . . . . . . . . . . . . . . . Average Slot Usage (%) 91 | . 97 100 100 100 100 100 97 96 100 100 99 96 96 92 92 92 93 97 100 100 95 95 81 80 80 80 80 81 84 92 93 94 92 Engine 2 | . 16 14 14 14 14 12 10 10 10 5 . . . . . . . 4 5 5 . . . . . . . . . . . . . Core 1 | . . . . . . . . . . 4 8 5 8 7 7 6 6 4 5 5 . . . . . . . . . . . . . Reactor 3 | . . . . . . . . . . . . . . . . . . . . . 4 4 4 4 4 4 4 5 8 8 8 8 8 Leg 17 | . 33 29 28 28 28 25 20 20 20 19 18 18 16 15 14 13 12 11 11 11 18 19 18 19 19 19 18 17 16 16 16 16 15 Device 29 | . 9 14 14 14 14 12 26 18 16 20 27 27 26 23 22 20 19 21 23 28 31 34 33 33 33 34 36 37 37 36 36 39 35 Storage 1 | . . . . . . . . . . . . . . . . . . . . . . 1 . . . . . . . 2 4 4 5 Processor 12 | . . . . . . 9 10 13 20 19 18 18 18 23 25 31 32 30 28 24 19 14 4 4 4 3 2 4 8 8 8 8 8 Protection 6 | . 4 9 14 14 14 12 8 14 13 9 9 9 8 7 7 6 6 5 5 5 5 4 4 4 4 4 4 4 4 4 4 4 3 Energy Gun 3 | . . 9 12 . . . . 6 20 19 18 18 16 13 7 6 5 10 5 5 1 . . . . . . . . 2 3 2 . Ballistic Gun 11 | . 33 19 15 28 28 25 20 11 . . . . . . 7 6 6 6 11 10 11 12 13 14 14 14 13 9 6 11 8 10 12 Naked Turns . | . . . . . . . . . . . . . . . . . . . . . . . . . . . . . . . . . . Heaviest Build 141 | 6 7 12 17 16 16 19 26 37 30 31 31 22 39 34 34 34 35 40 39 44 76 92 92 92 92 95 95 121 111 126 133 134 141 Greatest Support 140 | 20 20 20 20 20 60 60 60 60 60 60 60 60 60 60 60 60 60 60 60 60 120 120 120 120 120 120 120 120 120 125 130 135 140 Greatest Overweight (x) 1 | . . . . . . . . . . . . . . . . . . . . . 1 . . . . . . 1 . 1 1 1 1 Average Overweight (x) . | . . . . . . . . . . . . . . . . . . . . . . . . . . . . . . . . . . Largest Inventory Capacity 6 | . 1 2 2 3 3 3 4 4 4 4 4 4 4 4 4 4 4 5 5 5 5 5 5 5 6 6 6 6 6 6 6 6 6 Average Capacity 4 | . . 1 2 2 3 3 3 4 4 4 4 4 4 4 4 4 4 4 5 5 5 5 5 5 5 6 6 6 6 6 6 6 6 Most Carried 6 | . 1 2 2 3 3 3 4 4 4 4 4 4 4 4 4 4 4 5 5 5 5 5 5 5 6 6 6 6 6 6 6 6 6 Average Carried 4 | . . 1 2 2 3 3 3 3 4 4 4 3 4 4 4 3 4 4 4 5 4 5 4 4 5 6 6 5 5 5 5 5 5 Final Capacity 6 | . 1 2 2 3 3 3 4 4 4 4 4 4 4 4 4 4 4 5 5 5 5 5 5 5 6 6 6 6 6 6 6 6 6 Final Carried 6 | . 1 2 2 3 3 3 4 4 4 4 4 4 4 4 4 4 4 5 5 5 5 5 5 5 6 6 6 6 6 6 6 5 6 Class Distribution -------------------- 21% | Mutant 21% | Scavenger-Skirmisher 17% | Scavenger-Mutant 9% | Scavenger-Tank 6% | Derelict-Skirmisher 5% | Generator-Mutant 4% | Generator-Skirmisher 3% | Generator-Tank 3% | Derelict-Mutant Dominant Class ---------------- Mutant | -10/Materials Mutant | -10/Mines Mutant | -9/Materials Mutant | -9/Mines Mutant | -9/Exiles Scavenger-Mutant | -8/Mines Scavenger-Skirmisher | -8/Materials Mutant | -7/Factory Mutant | -7/Lower Caves Mutant | -7/Lower Caves Mutant | -7/Data Miner Mutant | -6/Proximity Caves Skirmisher | -6/Factory Mutant | -6/Lower Caves Mutant | -6/Lower Caves Derelict-Mutant | -6/Zion Derelict-Skirmisher | -5/Proximity Caves Derelict-Skirmisher | -5/Factory Scavenger-Skirmisher | -5/Upper Caves Scavenger-Skirmisher | -5/Upper Caves Derelict-Skirmisher | -5/Warlord Scavenger-Tank | -4/Proximity Caves Scavenger-Skirmisher | -4/Factory Scavenger-Skirmisher | -4/Upper Caves Scavenger-Mutant | -4/Upper Caves Scavenger-Mutant | -4/Zhirov Scavenger-Skirmisher | -3/Proximity Caves Generator-Skirmisher | -3/Research Generator-Skirmisher | -3/Armory Generator-Mutant | -3/Lab Hacker-Skirmisher | -2/Research Generator-Tank | -1/Access Scavenger-Mutant | -1/Command Resources | -11 -10 -10 -9 -9 -9 -8 -8 -7 -7 -7 -7 -6 -6 -6 -6 -6 -5 -5 -5 -5 -5 -4 -4 -4 -4 -4 -3 -3 -3 -3 -2 -1 -1 ----------- Run | Scr Mat Min Mat Min Exi Min Mat Fac Low Low Dat Pro Fac Low Low Zio Pro Fac Upp Upp War Pro Fac Upp Upp Zhi Pro Res Arm Lab Res Acc Com Matter Collected 11650 | 181 56 74 95 78 . 119 334 415 164 126 . 82 20 70 20 70 155 230 46 40 582 536 703 415 78 133 495 1001 590 . 741 505 3496 Remotely 546 | . . . . . . . 334 212 . . . . . . . . . . . . . . . . . . . . . . . . . Salvage Created 17944 | . 56 . 89 37 . 175 302 491 139 264 . 210 102 359 . 238 483 669 . . 1156 280 1081 100 . 426 1222 1672 1000 . 1313 1455 4625 Parts 944 | . 3 5 7 10 . 13 47 29 9 9 . 20 2 11 . 6 19 49 8 . 56 10 77 4 3 4 56 102 46 . 62 72 205 Haulers Intercepted 4 | . . . . . . . . 1 . . . . . . . . . . . . . . 1 . . . . 1 . . . 1 . Recyclers Shooed 13 | . . . 1 . . . . . . . . . . . . . . 2 . . . . 2 . . . . 5 . . 1 2 . Parts Field Recycled . | . . . . . . . . . . . . . . . . . . . . . . . . . . . . . . . . . . Retrieved Matter . | . . . . . . . . . . . . . . . . . . . . . . . . . . . . . . . . . . Parts Self-Destructed 337 | . . . . . . . . . 16 9 . 17 . 9 . 6 23 . 8 . 174 10 . 4 2 4 55 . . . . . . Prevented 9 | . . . . . . . . . . . . . . . . . . . . . 9 . . . . . . . . . . . . Kills | -11 -10 -10 -9 -9 -9 -8 -8 -7 -7 -7 -7 -6 -6 -6 -6 -6 -5 -5 -5 -5 -5 -4 -4 -4 -4 -4 -3 -3 -3 -3 -2 -1 -1 ------- Run | Scr Mat Min Mat Min Exi Min Mat Fac Low Low Dat Pro Fac Low Low Zio Pro Fac Upp Upp War Pro Fac Upp Upp Zhi Pro Res Arm Lab Res Acc Com Combat Hostiles Destroyed 268 | . 2 1 4 3 . 7 19 10 5 5 . 7 1 6 . . 10 6 1 . 21 3 18 1 . . 15 15 17 . 19 16 56 Melee 8 | . . . . . . . . 5 . . . . . . . . . . . . 1 2 . . . . . . . . . . . Guns 176 | . 2 1 4 3 . 7 11 3 5 5 . 7 1 5 . . 10 6 1 . 19 1 13 1 . . 15 12 7 . 6 7 24 Cannons 34 | . . . . . . . . . . . . . . . . . . . . . . . 2 . . . . 1 3 . 4 4 20 AOE 14 | . . . . . . . 8 2 . . . . . . . . . . . . . . 3 . . . . . . . . 1 . Classes Destroyed 25 | . 1 1 1 1 . 1 3 5 1 . . 1 . 2 . . . 2 . . 3 . . . . . . 2 1 . . . . Worker 12 | . . . . . . . 1 . . . . . 1 . . . . 1 . . . . 2 . . . . 2 . . . 5 . Builder 19 | . . . . 1 . . 3 1 . . . . . . . . . 3 . . . . 3 . . . . 6 . . 1 1 . Tunneler 3 | . . . . . . . . 1 . . . . . . . . . . . . . . 2 . . . . . . . . . . Hauler 4 | . . . . . . . . 1 . . . . . . . . . . . . . . 1 . . . . 1 . . . 1 . Recycler 7 | . . . . . . . . . . . . . . . . . . 1 . . . . 1 . . . . 3 . . 1 1 . Carrier 1 | . . . . . . . . . . . . . . . . . . 1 . . . . . . . . . . . . . . . Operator 4 | . . . . . . . . 1 . . . . . . . . . 1 . . . . . . . . . . . . 1 . 1 Watcher 5 | . . . . . . . 1 . . . . . . . . . . 3 . . . . . . . . . . . . . 1 . Swarmer 47 | . . . 3 3 . 4 3 . 4 3 . 6 . . . . 4 4 . . 1 . 4 . . . . . . . . . 8 Saboteur 1 | . . . . . . . . . . . . . . . . . . . . . . . . . . . . . 1 . . . . Grunt 64 | . 2 . . . . . 7 6 . . . . . 3 . . 5 . . . 5 . 3 . . . 12 3 7 . 6 3 2 Brawler 6 | . . . . . . . . 1 . 1 . . . . . . 1 . . . 2 . . . . . . . . . . . 1 Duelist 6 | . . . . . . . . . . . . . . 1 . . . . . . . . . . . . . . 3 . . . 2 Protector 4 | . . . . . . . . . . . . . . . . . . . . . 1 . . . . . . . 1 . . . 2 Sentry 21 | . . 1 1 . . . 3 1 . . . . 1 . . . . 1 . . . 1 1 1 . . 1 . 1 . 2 2 4 Demolisher 3 | . . . . . . . . . . . . . . . . . . . . . 2 . . . . . . . 1 . . . . Specialist 1 | . . . . . . . . . . . . . . . . . . . . . . . . . . . . 1 . . . . . Hunter 41 | . . . . . . 3 5 1 . . . . . . . . . . . . 2 . 4 . . . . . . . 7 8 11 Programmer 43 | . . . . . . . . 1 . . . . . 1 . . . 1 . . 7 2 4 . . . 2 6 2 . 3 3 11 Heavy 13 | . . . . . . . 1 . . . . . . . . . . . . . . . 2 . . . . 1 1 . 1 . 7 Behemoth 5 | . . . . . . . . . . . . 1 . . . . . . 1 . . . . . . . . . . . . . 3 M Guard 1 | . . . . . . . . . . . . . . . . . . . . . . . . . . . . . . . . . 1 Tracker 1 | . . . . . . . . . . . . . . . . . . . . . . . . . . . . 1 . . . . . Combat Programmer 3 | . . . . . . . . . . . . . . . . . . . . . . . . . . . . 1 . . . . 2 Striker 2 | . . . . . . . . . . . . . . . . . . . . . . . . . . . . 2 . . . . . Executioner 1 | . . . . . . . . . . . . . . . . . . . . . 1 . . . . . . . . . . . . Thief 1 | . . . . . . . . . . . . . . 1 . . . . . . . . . . . . . . . . . . . Thug 2 | . . . . . . . . . . 1 . . . . . . . 1 . . . . . . . . . . . . . . . Mutant 1 | . . . . . . . . . 1 . . . . . . . . . . . . . . . . . . . . . . . . Best Kill Streak 12 | . 2 1 3 2 . 4 12 4 2 3 . 5 1 2 . . 4 8 1 . 7 2 8 1 . . 5 7 5 . 9 9 9 Combat Bots Only 9 | . 2 1 3 2 . 4 9 3 2 3 . 5 1 2 . . 4 4 1 . 7 2 8 1 . . 5 3 5 . 8 8 9 Max Kills in Single Turn 4 | . 1 1 1 1 . 1 3 2 2 2 . 1 1 1 . . 2 2 1 . 4 1 3 1 . . 1 2 2 . 1 2 2 Gunslinging 1 | . . . . . . . . . 1 1 . . . . . . 1 1 . . 1 . . . . . . . . . . . 1 Exploded 3 | . . . . . . . 2 1 . . . . . . . . . . . . . . 3 . . . . . . . . 1 . Melee 1 | . . . . . . . . 1 . . . . . . . . . . . . 1 1 . . . . . . . . . . . Uniques/NPCs Destroyed 2 | . . . . . . . . . . . . . . . . . . . . . . . . . . . . . . . . . 2 MAIN.C Shell (-1/Command) MAIN.C (-1/Command) Combat | -11 -10 -10 -9 -9 -9 -8 -8 -7 -7 -7 -7 -6 -6 -6 -6 -6 -5 -5 -5 -5 -5 -4 -4 -4 -4 -4 -3 -3 -3 -3 -2 -1 -1 -------- Run | Scr Mat Min Mat Min Exi Min Mat Fac Low Low Dat Pro Fac Low Low Zio Pro Fac Upp Upp War Pro Fac Upp Upp Zhi Pro Res Arm Lab Res Acc Com Damage Taken 16434 | . 132 63 97 190 . 286 1590 792 218 92 374 626 129 620 . . 290 546 . . 2048 332 750 36 . . 608 737 904 . 719 534 3721 Core 11570 | . 102 53 60 137 . 174 1185 521 162 59 259 441 95 376 . . 190 396 . . 1495 231 520 21 . . 364 498 669 . 510 362 2690 Absorbed by Shields 5071 | . . . . . . . . . . . . . . . . . . . . . . 28 . . . . . 284 . . 677 506 3576 Redirected to Core 10424 | . 92 35 46 128 . 174 1007 434 133 59 259 401 61 290 . . 163 349 . . 1415 225 404 21 . . 364 405 644 . 479 332 2504 Core Remaining (%) 66 | 100 . 91 . . . 100 24 . . . . 10 . . . . 28 . . . . 36 . . . . 97 . . 77 99 . . Volleys Fired 928 | . 13 4 12 13 . 13 50 30 11 12 3 12 6 24 . 8 25 26 4 . 52 3 47 3 4 11 35 55 43 4 57 54 294 Largest 4 | . 2 2 2 2 . 2 2 2 2 2 2 2 2 2 . 1 2 3 3 . 3 3 3 3 1 1 3 3 3 1 3 3 4 Hottest 180 | . 40 76 76 43 . 56 56 140 140 140 140 140 140 140 . 35 105 180 138 . 114 114 114 114 38 38 114 114 114 38 114 114 159 Shots Fired 1921 | . 26 8 24 26 . 26 88 53 22 24 6 23 12 40 . 8 46 72 12 . 132 10 124 9 4 11 89 113 77 4 90 112 630 Gun 1688 | . 26 8 24 26 . 26 76 47 22 24 6 23 12 40 . 8 46 72 12 . 132 10 119 9 4 11 89 103 57 4 61 97 494 Cannon 214 | . . . . . . . . . . . . . . . . . . . . . . . 4 . . . . 10 20 . 29 15 136 Launcher 19 | . . . . . . . 12 6 . . . . . . . . . . . . . . 1 . . . . . . . . . . Special . | . . . . . . . . . . . . . . . . . . . . . . . . . . . . . . . . . . Kinetic 1465 | . 26 7 13 26 . 26 76 44 . . . . . . . 8 25 26 8 . 132 10 119 9 4 11 89 103 57 4 55 93 494 Thermal 340 | . . 1 11 . . . . 3 22 24 6 23 12 40 . . 21 46 4 . . . . . . . . . . . . . 127 Explosive 19 | . . . . . . . 12 6 . . . . . . . . . . . . . . 1 . . . . . . . . . . Electromagnetic 97 | . . . . . . . . . . . . . . . . . . . . . . . 4 . . . . 10 20 . 35 19 9 Robot Hit Streak 51 | . 7 5 4 9 . 11 10 7 5 5 6 12 6 27 . 35 22 30 14 . 11 3 13 15 17 21 13 14 19 . 16 20 51 Robot Miss Streak 6 | . 5 2 1 2 . 2 3 6 6 4 . 1 1 1 . . 2 1 1 . 2 1 3 . . 1 2 2 3 . 2 3 4 Penetration Max 2 | . . . . . . . 1 1 . . . . . . . 1 2 1 . . 2 . 2 . . 1 1 2 1 . 1 2 1 Secondary Targets 42 | . 1 1 1 . . 2 1 . 1 2 . 1 . . . . 5 3 . . 5 . 1 . . . 4 3 4 . . 2 5 Max Gunslinging Chain 2 | . 1 1 1 . . 1 1 . 1 1 . 1 . . . . 1 2 . . 1 . 1 . . . 1 1 1 . . 1 1 Shots Hit Robots 1363 | . 17 6 17 20 . 17 50 40 10 14 7 17 9 36 . 8 37 54 11 . 98 12 80 5 2 10 66 71 56 . 73 82 438 Core Hits 645 | . 5 2 7 6 . 7 45 25 7 10 2 10 3 10 . 5 22 30 2 . 44 4 47 4 2 6 32 43 21 . 25 39 180 Critical Kills 46 | . . . . . . . . . . . . . . . . 1 4 6 . . 9 . 4 . . . 2 4 . . 1 4 11 Critical Parts Destroyed 85 | . . . 1 . . . . 1 . . . . . . . . 3 6 . . 16 1 7 . . 1 . 8 4 . 6 5 26 Critical Strikes 197 | . . . 3 . . . . 3 . 4 . . 1 4 . 1 13 15 2 . 26 2 12 . . 2 3 13 8 . 17 13 55 Burn 21 | . . . 2 . . . . . . 4 . . 1 4 . . 6 3 1 . . . . . . . . . . . . . . Meltdown 7 | . . . . . . . . . . . . . . . . . . . . . . . . . . . . . . . . . 7 Destroy 144 | . . . 1 . . . . 1 . . . . . . . 1 7 12 1 . 26 1 12 . . 2 3 12 4 . 8 9 44 Corrupt 22 | . . . . . . . . . . . . . . . . . . . . . . . . . . . . 1 4 . 9 4 4 Sever 3 | . . . . . . . . 2 . . . . . . . . . . . . . 1 . . . . . . . . . . . Melee Attacks 52 | . . . . . . . . 23 . . 1 . . 7 . . 5 . . 1 1 14 . . . . . . . . . . . Impact . | . . . . . . . . . . . . . . . . . . . . . . . . . . . . . . . . . . Slashing 52 | . . . . . . . . 23 . . 1 . . 7 . . 5 . . 1 1 14 . . . . . . . . . . . Piercing . | . . . . . . . . . . . . . . . . . . . . . . . . . . . . . . . . . . Sneak Attacks 1 | . . . . . . . . . . . 1 . . . . . . . . . . . . . . . . . . . . . . Combat Hostiles . | . . . . . . . . . . . . . . . . . . . . . . . . . . . . . . . . . . Follow-up Attacks . | . . . . . . . . . . . . . . . . . . . . . . . . . . . . . . . . . . Damage Inflicted 57932 | . 177 72 226 286 . 276 2126 1384 265 350 211 459 243 968 . 53 662 1146 233 . 3734 539 4854 273 78 468 2880 4468 3139 . 4029 4543 19790 Guns 43282 | . 177 72 226 286 . 276 1100 595 265 350 99 459 243 968 . 53 662 1146 233 . 3668 195 4066 273 78 468 2880 3856 1666 . 2170 2951 13801 Cannons 10893 | . . . . . . . . . . . . . . . . . . . . . . . 159 . . . . 558 1184 . 1859 1144 5989 Explosions 2780 | . . . . . . . 1026 426 . . . . . . . . . . . . . . 629 . . . . . 289 . . 410 . Melee 850 | . . . . . . . . 357 . . 112 . . . . . . . . . 37 344 . . . . . . . . . . . Ramming 127 | . . . . . . . . 6 . . . . . . . . . . . . 29 . . . . . . 54 . . . 38 . Kinetic 39113 | . 177 58 97 286 . 276 1100 571 . . . . . . . 53 209 217 121 . 3668 195 4066 273 78 468 2880 3856 1666 . 2154 2843 13801 Thermal 9539 | . . 14 129 . . . . 24 265 350 99 459 243 968 . . 453 929 112 . . . . . . . . . 179 . . 22 5293 Explosive 2191 | . . . . . . . 1026 426 . . . . . . . . . . . . . . 629 . . . . . 110 . . . . Electromagnetic 6112 | . . . . . . . . . . . . . . . . . . . . . . . 159 . . . . 558 1184 . 1875 1640 696 Impact . | . . . . . . . . . . . . . . . . . . . . . . . . . . . . . . . . . . Slashing 850 | . . . . . . . . 357 . . 112 . . . . . . . . . 37 344 . . . . . . . . . . . Piercing . | . . . . . . . . . . . . . . . . . . . . . . . . . . . . . . . . . . Highest Corruption 9 | . . . . . . . . 3 3 3 3 3 . . . . . 1 1 1 3 5 1 1 1 1 1 5 9 9 2 3 5 Average Corruption 3 | . . . . . . . . 3 3 3 3 3 . . . . . 1 1 1 2 4 1 1 1 1 1 2 5 9 2 1 4 Corruption Purged 5 | . . . . . . . . . . . . . . . . . . . . . . . . . . . . . . . . . 5 Effects 168 | . . . . . . . . 13 5 8 2 10 . . . . . . . 3 5 13 1 1 1 . 5 10 25 14 5 3 44 Message Errors 50 | . . . . . . . . 3 1 4 . 1 . . . . . . . . 1 2 . 1 1 . 1 3 6 3 3 . 20 Matter Fused 34 | . . . . . . . . 5 1 2 1 3 . . . . . . . . 1 4 . . . . . 3 4 2 . 1 7 Heat Flow Errors 21 | . . . . . . . . 1 1 1 . 2 . . . . . . . . 1 3 . . . . . 2 4 1 . 1 4 Energy Discharges 29 | . . . . . . . . 2 1 1 1 2 . . . . . . . 2 1 1 . . . . 3 1 4 3 . . 7 Data Loss (minor) 19 | . . . . . . . . 1 1 . . 2 . . . . . . . 1 1 1 1 . . . 1 1 2 3 1 1 2 Data Loss (major) 7 | . . . . . . . . . . . . . . . . . . . . . . 1 . . . . . . 3 2 . . 1 Misfires 2 | . . . . . . . . . . . . . . . . . . . . . . 1 . . . . . . . . . . 1 Weapon Failures 6 | . . . . . . . . 1 . . . . . . . . . . . . . . . . . . . . 2 . 1 . 2 Overload Shots . | . . . . . . . . . . . . . . . . . . . . . . . . . . . . . . . . . . Overflow Damage 668 | . . . . . . . 13 . . . 52 . . . . . . . . . 22 . 137 . . . . . 17 . 127 153 147 Projectiles 418 | . . . . . . . . . . . . . . . . . . . . . . . . . . . . . 17 . 127 127 147 Explosions 176 | . . . . . . . 13 . . . . . . . . . . . . . . . 137 . . . . . . . . 26 . Melee 74 | . . . . . . . . . . . 52 . . . . . . . . . 22 . . . . . . . . . . . . Knockbacks . | . . . . . . . . . . . . . . . . . . . . . . . . . . . . . . . . . . Impact . | . . . . . . . . . . . . . . . . . . . . . . . . . . . . . . . . . . Kinetic . | . . . . . . . . . . . . . . . . . . . . . . . . . . . . . . . . . . Secondary . | . . . . . . . . . . . . . . . . . . . . . . . . . . . . . . . . . . Self-Inflicted Damage 211 | . . . . . . . . 21 . . . . . . . . . . . . . . . . . . . 146 12 . . 32 . Shots 5 | . . . . . . . . 1 . . . . . . . . . . . . . . . . . . . 2 1 . . 1 . Rammed . | . . . . . . . . . . . . . . . . . . . . . . . . . . . . . . . . . . Targets Rammed 7 | . . . . . . . . 2 . . . . . . . . . . . . 2 . . . . . . 1 . . . 2 . Kicked 7 | . . . . . . . . 2 . . . . . . . . . . . . 2 . . . . . . 1 . . . 2 . Crushed . | . . . . . . . . . . . . . . . . . . . . . . . . . . . . . . . . . . Highest Temperature 324 | . 9 . 4 . . 6 25 209 172 188 147 324 236 224 . . 14 130 . . 153 213 8 . . . 122 275 156 222 1 166 236 Average Temperature 57 | . 7 . 4 . . 6 12 76 63 49 71 140 103 96 . . 8 48 . . 82 83 4 . . . 29 33 39 124 1 88 43 Received Heat Transfer 2342 | . 72 18 9 78 . 9 315 216 49 9 48 36 54 252 . . 135 72 . . 439 4 51 . . . 186 21 39 . 72 31 127 Effects 1 | . . . . . . . . . . . . 1 . . . . . . . . . . . . . . . . . . . . . Energy Bleed 1 | . . . . . . . . . . . . 1 . . . . . . . . . . . . . . . . . . . . . Siege Activations . | . . . . . . . . . . . . . . . . . . . . . . . . . . . . . . . . . . Robots Corrupted 28 | . . . . . . . . . . . . . . . . . . . . . . . . . . . . 2 7 . 10 5 4 Combat Hostiles 26 | . . . . . . . . . . . . . . . . . . . . . . . . . . . . 2 7 . 9 4 4 Parts Fried 62 | . . . . . . . . . . . . . . . . . . . . . 1 . . . . . . 1 13 . 23 17 7 Impact Corruptions 2 | . . . . . . . . . . . . . . . . . . . . . 2 . . . . . . . . . . . . Robots Melted 9 | . . . . . . . . . . . . . . 1 . . . . . . . . . . . . . . . . . . 8 Combat Hostiles 9 | . . . . . . . . . . . . . . 1 . . . . . . . . . . . . . . . . . . 8 Parts Melted 42 | . . . 1 . . . . . 1 1 . 2 2 3 . . 2 3 1 . 3 . 2 . . . 1 . . . . . 20 Heat Transferred 10788 | . . 37 481 . . . . 37 407 814 222 629 407 1628 . . 1073 1764 222 . . . . . . . . . 100 . . 50 2917 Parts Sabotaged . | . . . . . . . . . . . . . . . . . . . . . . . . . . . . . . . . . . Parts Stolen 1 | . . . . . . . . . . . . . . 1 . . . . . . . . . . . . . . . . . . . Parts Stripped . | . . . . . . . . . . . . . . . . . . . . . . . . . . . . . . . . . . Power Chain Reactions 2 | . . . . . . . . . . . . . . . . . . . . . . . . . . . . . 1 . . 1 . Missiles Intercepted . | . . . . . . . . . . . . . . . . . . . . . . . . . . . . . . . . . . Alert | -11 -10 -10 -9 -9 -9 -8 -8 -7 -7 -7 -7 -6 -6 -6 -6 -6 -5 -5 -5 -5 -5 -4 -4 -4 -4 -4 -3 -3 -3 -3 -2 -1 -1 ------- Run | Scr Mat Min Mat Min Exi Min Mat Fac Low Low Dat Pro Fac Low Low Zio Pro Fac Upp Upp War Pro Fac Upp Upp Zhi Pro Res Arm Lab Res Acc Com Peak Influence 1416 | . 65 86 346 331 . 164 528 541 . . . . 50 . . . . 229 . . . . 450 . . . . 1416 1057 . 426 877 1249 Initial 743 | . . 25 33 134 . . 63 240 . . . . . . . . . 130 . . . . . . . . . 3 743 . . 254 560 Average 385 | . 37 74 177 272 . 94 332 370 . . . . 28 . . . . 118 . . . . 192 . . . . 455 774 . 193 545 948 Maximum Alert Level 5 | . . . 1 1 . . 2 2 . . . . . . . . . 1 . . . . 2 . . . . 4 3 . 2 3 5 Low Security (%) 22 | 100 100 100 44 17 . 100 20 . . . . . 100 . . . . 92 . . . . 50 . . . . 42 . . 43 . . Level 1 21 | . . . 55 82 . . 49 59 . . . . . . . . . 7 . . . . 39 . . . . 28 . . 48 23 . Level 2 10 | . . . . . . . 29 40 . . . . . . . . . . . . . . 9 . . . . . 19 . 7 53 1 Level 3 9 | . . . . . . . . . . . . . . . . . . . . . . . . . . . . 5 80 . . 23 5 Level 4 8 | . . . . . . . . . . . . . . . . . . . . . . . . . . . . 22 . . . . 16 Level 5 28 | . . . . . . . . . . . . . . . . . . . . . . . . . . . . . . . . . 76 High Security . | . . . . . . . . . . . . . . . . . . . . . . . . . . . . . . . . . . Max Security . | . . . . . . . . . . . . . . . . . . . . . . . . . . . . . . . . . . Squads Dispatched 82 | . . 1 1 . . . 7 3 . . . . . . . . . 3 . . . . 14 . 1 . . 17 7 . 9 13 6 Investigation 5 | . . . . . . . 3 . . . . . . . . . . . . . . . 1 . . . . . . . . 1 . Extermination 9 | . . . . . . . . 1 . . . . . . . . . . . . . . 2 . . . . 2 1 . 1 1 1 Reinforcement 49 | . . . 1 . . . 2 2 . . . . . . . . . 3 . . . . 9 . . . . 9 3 . 8 8 4 Assault 5 | . . 1 . . . . . . . . . . . . . . . . . . . . . . 1 . . . 2 . . . 1 Garrison 10 | . . . . . . . 2 . . . . . . . . . . . . . . . 2 . . . . 3 . . . 3 . Intercept 4 | . . . . . . . . . . . . . . . . . . . . . . . . . . . . 3 1 . . . . Construction Impeded 11 | . . . . . . . . 1 . . . . . . . . . 1 . . . . 3 . . . . 2 . . 1 3 . Haulers Reinforced 13 | . . . . . . . 1 . . . . . . . . . . . . . . . 4 . . . . 2 2 . 2 . 2 Active Scanning Responses . | . . . . . . . . . . . . . . . . . . . . . . . . . . . . . . . . . . Cargo Convoy Interrupts 1 | . . . . . . . . . . . . . . . . . . . . . . . . . . . . 1 . . . . . Stealth | -11 -10 -10 -9 -9 -9 -8 -8 -7 -7 -7 -7 -6 -6 -6 -6 -6 -5 -5 -5 -5 -5 -4 -4 -4 -4 -4 -3 -3 -3 -3 -2 -1 -1 --------- Run | Scr Mat Min Mat Min Exi Min Mat Fac Low Low Dat Pro Fac Low Low Zio Pro Fac Upp Upp War Pro Fac Upp Upp Zhi Pro Res Arm Lab Res Acc Com Distress Signals 33 | . 1 . 1 . . . 2 1 . . . . . . . . . . . . . . 1 . . . . 2 . . 2 3 20 Communications Jammed . | . . . . . . . . . . . . . . . . . . . . . . . . . . . . . . . . . . Distress Signals . | . . . . . . . . . . . . . . . . . . . . . . . . . . . . . . . . . . Times Spotted 465 | . 6 2 7 11 . 6 28 17 8 7 4 11 1 12 . . 13 16 1 . 94 3 21 1 3 . 13 38 31 . 30 25 56 Peak Tracking Total 18 | . 5 2 3 4 . 4 11 5 4 3 4 8 1 4 . . 5 6 1 . 18 2 4 1 10 . 4 7 10 . 9 7 7 Tactical Retreats 22 | . . . . . . . 4 . . . . 2 . 4 . . . . . . 6 . . . . . . 3 1 . 1 1 . Traps | -11 -10 -10 -9 -9 -9 -8 -8 -7 -7 -7 -7 -6 -6 -6 -6 -6 -5 -5 -5 -5 -5 -4 -4 -4 -4 -4 -3 -3 -3 -3 -2 -1 -1 ------- Run | Scr Mat Min Mat Min Exi Min Mat Fac Low Low Dat Pro Fac Low Low Zio Pro Fac Upp Upp War Pro Fac Upp Upp Zhi Pro Res Arm Lab Res Acc Com Traps Triggered 8 | . . . . . . . . . . . . . . . . . . . . . . . 1 . . . . . . . . . 7 Indirectly . | . . . . . . . . . . . . . . . . . . . . . . . . . . . . . . . . . . Trap Hack Attempts . | . . . . . . . . . . . . . . . . . . . . . . . . . . . . . . . . . . Triggered . | . . . . . . . . . . . . . . . . . . . . . . . . . . . . . . . . . . Disarmed . | . . . . . . . . . . . . . . . . . . . . . . . . . . . . . . . . . . Reprogrammed . | . . . . . . . . . . . . . . . . . . . . . . . . . . . . . . . . . . Reused . | . . . . . . . . . . . . . . . . . . . . . . . . . . . . . . . . . . Traps Extracted . | . . . . . . . . . . . . . . . . . . . . . . . . . . . . . . . . . . Installed . | . . . . . . . . . . . . . . . . . . . . . . . . . . . . . . . . . . Triggered 20 | . . . . . . . . . . . . . . . . . . . . . 18 . . . . . . 2 . . . . . Machines | -11 -10 -10 -9 -9 -9 -8 -8 -7 -7 -7 -7 -6 -6 -6 -6 -6 -5 -5 -5 -5 -5 -4 -4 -4 -4 -4 -3 -3 -3 -3 -2 -1 -1 ---------- Run | Scr Mat Min Mat Min Exi Min Mat Fac Low Low Dat Pro Fac Low Low Zio Pro Fac Upp Upp War Pro Fac Upp Upp Zhi Pro Res Arm Lab Res Acc Com Machines Disabled 39 | . . . . . . . 1 2 1 . . . . . . . . . . . . . 7 . . 1 1 3 8 1 1 5 8 Max in Single Turn 2 | . . . . . . . 1 1 1 . . . . . . . . . . . . . 1 . . 1 1 1 1 1 1 2 1 Garrison Access 2 | . . . . . . . . 1 . . . . . . . . . . . . . . . . . . . . . . 1 . . Phase Generator 1 | . . . . . . . . . . . . . . . . . . . . . . . . . . . . . . . . . 1 Machines Sabotaged . | . . . . . . . . . . . . . . . . . . . . . . . . . . . . . . . . . . Garrisons Compromised 1 | . . . . . . . . . . . . . . . . . . . . . . . . . . . . 1 . . . . . Overloaded Fab Kills . | . . . . . . . . . . . . . . . . . . . . . . . . . . . . . . . . . . Fab Network Shutdowns . | . . . . . . . . . . . . . . . . . . . . . . . . . . . . . . . . . . Hacking | -11 -10 -10 -9 -9 -9 -8 -8 -7 -7 -7 -7 -6 -6 -6 -6 -6 -5 -5 -5 -5 -5 -4 -4 -4 -4 -4 -3 -3 -3 -3 -2 -1 -1 --------- Run | Scr Mat Min Mat Min Exi Min Mat Fac Low Low Dat Pro Fac Low Low Zio Pro Fac Upp Upp War Pro Fac Upp Upp Zhi Pro Res Arm Lab Res Acc Com Machines Accessed 48 | . 2 . 2 . 2 . 3 5 1 . 4 . 1 2 . . . 1 . . 4 . 3 2 . 4 . 2 1 2 2 4 1 Terminals 21 | . 2 . 2 . . . 3 2 . . . . 1 . . . . 1 . . . . 2 . . . . 1 1 . 1 4 1 Fabricators . | . . . . . . . . . . . . . . . . . . . . . . . . . . . . . . . . . . Repair Stations . | . . . . . . . . . . . . . . . . . . . . . . . . . . . . . . . . . . Recycling Units 3 | . . . . . . . . 2 . . . . . . . . . . . . . . 1 . . . . . . . . . . Scanalyzers . | . . . . . . . . . . . . . . . . . . . . . . . . . . . . . . . . . . Garrison Access 3 | . . . . . . . . 1 . . . . . . . . . . . . . . . . . . . 1 . . 1 . . Total Hacks 131 | . 4 . 4 . 2 . 9 14 1 . 25 . 2 2 . . . 3 . . 14 . 10 3 . 13 . 2 2 4 8 7 2 Successful 89 | . 1 . 2 . 2 . 1 5 1 . 25 . 1 2 . . . 3 . . 14 . 4 3 . 13 . . . 4 4 3 1 Failed 42 | . 3 . 2 . . . 8 9 . . . . 1 . . . . . . . . . 6 . . . . 2 2 . 4 4 1 Catastrophic 7 | . 1 . 1 . . . 3 . . . . . . . . . . . . . . . 1 . . . . 1 . . . . . Database Lockouts . | . . . . . . . . . . . . . . . . . . . . . . . . . . . . . . . . . . Manual 32 | . 4 . 2 . 1 . 8 4 . . . . . . . . . 2 . . 1 . . . . . . . 2 2 6 . . Terminals 56 | . 4 . 4 . . . 9 10 . . . . 2 . . . . 3 . . . . 6 . . . . 1 2 . 6 7 2 Fabricators . | . . . . . . . . . . . . . . . . . . . . . . . . . . . . . . . . . . Repair Stations . | . . . . . . . . . . . . . . . . . . . . . . . . . . . . . . . . . . Recycling Units 7 | . . . . . . . . 3 . . . . . . . . . . . . . . 4 . . . . . . . . . . Scanalyzers . | . . . . . . . . . . . . . . . . . . . . . . . . . . . . . . . . . . Garrison Access 4 | . . . . . . . . 1 . . . . . . . . . . . . . . . . . . . 1 . . 2 . . Terminal Hacks 80 | . . . 1 . 2 . . 3 1 . 25 . 1 2 . . . 2 . . 14 . 3 3 . 13 . . . 4 2 3 1 Record 31 | . . . . . 1 . . . . . 11 . . . . . . . . . 8 . . 2 . 5 . . . 4 . . . Part Schematic 11 | . . . . . . . . . . . 6 . . . . . . 1 . . . . . . . 4 . . . . . . . Robot Schematic 5 | . . . . . . . . . . . 5 . . . . . . . . . . . . . . . . . . . . . . Prototype ID Bank 14 | . . . . . . . . 1 . . 3 . . . . . . . . . 5 . 1 . . 4 . . . . . . . Open Door 9 | . . . . . . . . . 1 . . . . 2 . . . . . . 1 . . 1 . . . . . . . 3 1 Level Access Points 1 | . . . . . . . . . . . . . . . . . . . . . . . . . . . . . . . 1 . . Branch Access Points 3 | . . . 1 . . . . 1 . . . . . . . . . . . . . . 1 . . . . . . . . . . Alert Level 2 | . . . . . . . . . . . . . 1 . . . . . . . . . . . . . . . . . 1 . . Unreport Threat 2 | . . . . . . . . . . . . . . . . . . 1 . . . . 1 . . . . . . . . . . Hauler Manifests 1 | . . . . . . . . 1 . . . . . . . . . . . . . . . . . . . . . . . . . EX-Prototype ID Bank 1 | . . . . . 1 . . . . . . . . . . . . . . . . . . . . . . . . . . . . Fabricator Hacks . | . . . . . . . . . . . . . . . . . . . . . . . . . . . . . . . . . . Repair Station Hacks . | . . . . . . . . . . . . . . . . . . . . . . . . . . . . . . . . . . Recycling Unit Hacks 1 | . . . . . . . . . . . . . . . . . . . . . . . 1 . . . . . . . . . . Retrieve Components 1 | . . . . . . . . . . . . . . . . . . . . . . . 1 . . . . . . . . . . Scanalyzer . | . . . . . . . . . . . . . . . . . . . . . . . . . . . . . . . . . . Garrison Access Hacks 2 | . . . . . . . . 1 . . . . . . . . . . . . . . . . . . . . . . 1 . . Seal Access 2 | . . . . . . . . 1 . . . . . . . . . . . . . . . . . . . . . . 1 . . Unauthorized Hacks 6 | . 1 . 1 . . . 1 1 . . . . . . . . . 1 . . . . . . . . . . . . 1 . . Terminals 6 | . 1 . 1 . . . 1 1 . . . . . . . . . 1 . . . . . . . . . . . . 1 . . Botnet 6 | . 1 . 1 . . . 1 1 . . . . . . . . . 1 . . . . . . . . . . . . 1 . . Fabricators . | . . . . . . . . . . . . . . . . . . . . . . . . . . . . . . . . . . Repair Stations . | . . . . . . . . . . . . . . . . . . . . . . . . . . . . . . . . . . Recycling Units . | . . . . . . . . . . . . . . . . . . . . . . . . . . . . . . . . . . Scanalyzers . | . . . . . . . . . . . . . . . . . . . . . . . . . . . . . . . . . . Garrison Access . | . . . . . . . . . . . . . . . . . . . . . . . . . . . . . . . . . . Data Cores Recovered 3 | . . . . . . . . 1 . . . . . . . . . 1 . . . . . . . . . . . . 1 . . Used 2 | . . . . . . . . 1 . . . . . . . . . 1 . . . . . . . . . . . . . . . Hacking Detections 21 | . 1 . 2 . . . 3 4 . . . . 1 . . . . 1 . . . . 3 . . . . 1 1 . 1 3 . Full Trace Events 5 | . . . . . . . 3 . . . . . . . . . . . . . . . 1 . . . . . . . . 1 . Feedback Events . | . . . . . . . . . . . . . . . . . . . . . . . . . . . . . . . . . . Feedback Blocked . | . . . . . . . . . . . . . . . . . . . . . . . . . . . . . . . . . . Robot Schematics Acquired 5 | . . . . . . . . . . . 5 . . . . . . . . . . . . . . . . . . . . . . Robots Built . | . . . . . . . . . . . . . . . . . . . . . . . . . . . . . . . . . . Matter . | . . . . . . . . . . . . . . . . . . . . . . . . . . . . . . . . . . Time . | . . . . . . . . . . . . . . . . . . . . . . . . . . . . . . . . . . Total Robot Build Rating . | . . . . . . . . . . . . . . . . . . . . . . . . . . . . . . . . . . Part Schematics Acquired 11 | . . . . . . . . . . . 6 . . . . . . 1 . . . . . . . 4 . . . . . . . Parts Built . | . . . . . . . . . . . . . . . . . . . . . . . . . . . . . . . . . . Matter . | . . . . . . . . . . . . . . . . . . . . . . . . . . . . . . . . . . Time . | . . . . . . . . . . . . . . . . . . . . . . . . . . . . . . . . . . Total Part Build Rating . | . . . . . . . . . . . . . . . . . . . . . . . . . . . . . . . . . . Parts Repaired . | . . . . . . . . . . . . . . . . . . . . . . . . . . . . . . . . . . Time . | . . . . . . . . . . . . . . . . . . . . . . . . . . . . . . . . . . Parts Recycled . | . . . . . . . . . . . . . . . . . . . . . . . . . . . . . . . . . . Recycled Matter . | . . . . . . . . . . . . . . . . . . . . . . . . . . . . . . . . . . Retrieved Matter . | . . . . . . . . . . . . . . . . . . . . . . . . . . . . . . . . . . Retrieved Components 10 | . . . . . . . . . . . . . . . . . . . . . . . 10 . . . . . . . . . . Parts Scanalyzed . | . . . . . . . . . . . . . . . . . . . . . . . . . . . . . . . . . . Part Schematics Acquired . | . . . . . . . . . . . . . . . . . . . . . . . . . . . . . . . . . . Parts Damaged . | . . . . . . . . . . . . . . . . . . . . . . . . . . . . . . . . . . Bothacking | -11 -10 -10 -9 -9 -9 -8 -8 -7 -7 -7 -7 -6 -6 -6 -6 -6 -5 -5 -5 -5 -5 -4 -4 -4 -4 -4 -3 -3 -3 -3 -2 -1 -1 ------------ Run | Scr Mat Min Mat Min Exi Min Mat Fac Low Low Dat Pro Fac Low Low Zio Pro Fac Upp Upp War Pro Fac Upp Upp Zhi Pro Res Arm Lab Res Acc Com Used RIF Installer . | . . . . . . . . . . . . . . . . . . . . . . . . . . . . . . . . . . Robots Hacked . | . . . . . . . . . . . . . . . . . . . . . . . . . . . . . . . . . . Non-combat . | . . . . . . . . . . . . . . . . . . . . . . . . . . . . . . . . . . Combat . | . . . . . . . . . . . . . . . . . . . . . . . . . . . . . . . . . . Robot Hacks Applied . | . . . . . . . . . . . . . . . . . . . . . . . . . . . . . . . . . . Relay Couplers Released . | . . . . . . . . . . . . . . . . . . . . . . . . . . . . . . . . . . Robots Rewired 3 | . . . . . . . . . 3 . . . . . . . . . . . . . . . . . . . . . . . . Allies Hacked . | . . . . . . . . . . . . . . . . . . . . . . . . . . . . . . . . . . Hacks Repelled . | . . . . . . . . . . . . . . . . . . . . . . . . . . . . . . . . . . Allies | -11 -10 -10 -9 -9 -9 -8 -8 -7 -7 -7 -7 -6 -6 -6 -6 -6 -5 -5 -5 -5 -5 -4 -4 -4 -4 -4 -3 -3 -3 -3 -2 -1 -1 -------- Run | Scr Mat Min Mat Min Exi Min Mat Fac Low Low Dat Pro Fac Low Low Zio Pro Fac Upp Upp War Pro Fac Upp Upp Zhi Pro Res Arm Lab Res Acc Com Total Allies 31 | . . 4 . . . . . . 3 . . . . . . 6 . . . . . . . . . . . 18 . . . . . Largest Group 13 | . . 4 4 4 3 3 . . 3 2 2 . . . . 6 6 2 . . . . . . . . . 13 . . . . . Highest-Rated Group 772 | . . 71 71 71 40 40 . . 93 62 62 . . . . 138 138 46 . . . . . . . . . 772 . . . . . Highest-Rated Ally 77 | . . 31 31 31 16 16 . . 31 31 31 . . . . 31 31 26 . . . . . . . . . 77 . . . . . Total Orders . | . . . . . . . . . . . . . . . . . . . . . . . . . . . . . . . . . . Ally Attacks 258 | . . 8 10 27 . 26 . . 15 20 5 . . . . . 33 . . . . . . . . . . 114 . . . . . Total Damage 4319 | . . 89 98 306 . 250 . . 145 268 43 . . . . . 503 . . . . . . . . . . 2617 . . . . . Kills 45 | . . 1 5 10 . 1 . . 3 3 . . . . . . 3 . . . . . . . . . . 19 . . . . . Allies Corrupted . | . . . . . . . . . . . . . . . . . . . . . . . . . . . . . . . . . . Allies Melted 1 | . . . . . . . . . . . . . . . . . . . 1 . . . . . . . . . . . . . . Intel | -11 -10 -10 -9 -9 -9 -8 -8 -7 -7 -7 -7 -6 -6 -6 -6 -6 -5 -5 -5 -5 -5 -4 -4 -4 -4 -4 -3 -3 -3 -3 -2 -1 -1 ------- Run | Scr Mat Min Mat Min Exi Min Mat Fac Low Low Dat Pro Fac Low Low Zio Pro Fac Upp Upp War Pro Fac Upp Upp Zhi Pro Res Arm Lab Res Acc Com Robot Analysis Total 119 | . . . . . . . . . . . 119 . . . . . . . . . . . . . . . . . . . . . . Derelict Logs Recovered 18 | . . . . 2 . . . . . 3 . 2 . 1 3 1 . . . . . 2 . 3 1 . . . . . . . . Drone Launches . | . . . . . . . . . . . . . . . . . . . . . . . . . . . . . . . . . . Drone Recoveries . | . . . . . . . . . . . . . . . . . . . . . . . . . . . . . . . . . . Exploration | -11 -10 -10 -9 -9 -9 -8 -8 -7 -7 -7 -7 -6 -6 -6 -6 -6 -5 -5 -5 -5 -5 -4 -4 -4 -4 -4 -3 -3 -3 -3 -2 -1 -1 ------------- Run | Scr Mat Min Mat Min Exi Min Mat Fac Low Low Dat Pro Fac Low Low Zio Pro Fac Upp Upp War Pro Fac Upp Upp Zhi Pro Res Arm Lab Res Acc Com Turns Passed 21463 | 16 188 174 209 625 318 297 545 824 316 416 92 524 127 777 340 865 675 377 516 497 1034 601 971 548 424 224 905 1057 844 451 588 575 4523 Spaces Moved 17001 | 10 117 132 121 456 264 249 347 680 255 384 100 444 106 734 376 905 543 279 422 415 806 578 685 535 396 207 755 623 616 336 281 384 3460 Core . | . . . . . . . . . . . . . . . . . . . . . . . . . . . . . . . . . . Treads . | . . . . . . . . . . . . . . . . . . . . . . . . . . . . . . . . . . Legs 17001 | 10 117 132 121 456 264 249 347 680 255 384 100 444 106 734 376 905 543 279 422 415 806 578 685 535 396 207 755 623 616 336 281 384 3460 Wheels . | . . . . . . . . . . . . . . . . . . . . . . . . . . . . . . . . . . Hover . | . . . . . . . . . . . . . . . . . . . . . . . . . . . . . . . . . . Flight . | . . . . . . . . . . . . . . . . . . . . . . . . . . . . . . . . . . Fastest Speed 45 | 120 120 120 120 120 90 90 90 90 90 90 45 45 90 45 90 90 90 90 90 90 45 63 63 63 63 95 95 63 63 95 95 63 63 Average Speed 95 | 120 120 120 120 120 108 90 90 90 90 90 76 88 90 88 90 90 90 90 90 90 79 94 93 94 94 95 95 108 92 113 106 94 97 Slowest Speed 180 | 120 120 120 120 120 120 90 90 90 90 90 90 90 90 90 90 90 90 90 90 90 180 95 96 95 95 95 95 180 95 180 180 180 180 Overloaded Moves 561 | . . . . . . . . . . . 30 17 . 22 . . . . . . 315 2 27 3 7 . . 37 42 . . 15 44 Propulsion Burnouts . | . . . . . . . . . . . . . . . . . . . . . . . . . . . . . . . . . . Robots Hopped . | . . . . . . . . . . . . . . . . . . . . . . . . . . . . . . . . . . Cave-ins Triggered 6 | . . . . . . . . . . . . . . . . . . . . . . . . . . . . . . . . . 6 Teleports 1 | . . . . . . . . . . . . . . . . . . . . . . . . . . . . . . 1 . . . Exploration Rate (%) 51 | 2 29 26 20 97 60 49 36 17 49 61 77 55 5 79 60 85 66 10 59 69 83 74 22 78 56 59 84 24 40 98 8 13 89 Regions Visited 33 Branch Regions 23 Pre-discovered Areas 31 | . . . . . 1 . . . . . 26 . . . . 1 . . . . . . . . . 3 . . . . . . . Known Exits Taken 24 | . . . 1 . . . 1 1 1 1 1 1 1 1 1 1 1 1 1 1 1 1 1 1 1 1 1 1 . . 1 . . Unknown Exits Taken 9 | 1 1 1 . 1 1 1 . . . . . . . . . . . . . . . . . . . . . . 1 1 . 1 . Scrap Searched 35 | . . . . 1 . 1 . . 2 4 . 1 . 3 4 2 3 . 2 2 . 4 . 3 2 . 1 . . . . . . Spaces Dug 138 | . . . . . . . . 5 . . . . . 7 . . 5 . . 1 . 5 9 . 5 . 2 20 3 . 5 39 32 Terrain Destroyed 837 | . . . . . . 2 40 19 . . . . . 7 . . 6 . . 1 20 15 142 6 5 . 61 92 79 . 27 88 227 Melee 23 | . . . . . . . . 5 . . . . . 7 . . 5 . . 1 . 5 . . . . . . . . . . . Projectile 560 | . . . . . . 2 3 1 . . . . . . . . . . . . 20 10 84 6 5 . 61 88 42 . 27 55 156 AOE 252 | . . . . . . . 36 13 . . . . . . . . . . . . . . 58 . . . . 4 37 . . 33 71 Terrain Rammed . | . . . . . . . . . . . . . . . . . . . . . . . . . . . . . . . . . . Walls Destroyed . | . . . . . . . . . . . . . . . . . . . . . . . . . . . . . . . . . . Machines Disabled . | . . . . . . . . . . . . . . . . . . . . . . . . . . . . . . . . . . Actions | -11 -10 -10 -9 -9 -9 -8 -8 -7 -7 -7 -7 -6 -6 -6 -6 -6 -5 -5 -5 -5 -5 -4 -4 -4 -4 -4 -3 -3 -3 -3 -2 -1 -1 --------- Run | Scr Mat Min Mat Min Exi Min Mat Fac Low Low Dat Pro Fac Low Low Zio Pro Fac Upp Upp War Pro Fac Upp Upp Zhi Pro Res Arm Lab Res Acc Com Total 20793 | 13 140 139 161 511 297 295 489 801 319 429 108 555 127 815 376 947 675 350 549 536 1080 601 917 569 441 222 872 915 826 397 488 509 4324 Wait 1723 | . 1 . 12 23 30 11 54 7 9 16 3 91 10 36 . 28 76 17 101 117 74 3 139 3 20 . 40 155 123 35 71 31 387 Move 16962 | 9 116 131 120 455 263 248 346 679 254 383 99 443 105 733 375 904 542 278 421 414 805 577 684 534 395 206 754 623 615 335 280 383 3453 Hop . | . . . . . . . . . . . . . . . . . . . . . . . . . . . . . . . . . . Pick Up 46 | . 1 1 . 3 . . 1 . . . . 1 . 1 . 1 1 2 1 . . . 2 1 1 . . 6 5 2 8 4 4 Fast Attach 125 | 3 2 2 3 . . 2 7 9 . 2 . 1 3 3 1 3 1 8 . 1 10 2 7 3 2 3 2 9 1 10 1 2 22 Attach 26 | . . . . . . . . . . . . 1 . . . . . . . . . . . . . . . 4 3 2 7 7 2 Detach 24 | . . . . . . . 1 3 . . . . . . . . . 1 . . 3 . 4 . . 1 . . . 2 . 3 6 Swap 92 | . . . . . 2 1 2 8 2 . 2 1 1 3 . . 2 3 2 2 13 1 10 1 . . 2 6 1 2 6 1 18 Drop 142 | 1 1 1 3 2 2 2 4 9 1 1 . 1 2 3 . 3 1 8 1 1 12 1 7 5 2 1 1 15 7 5 8 8 23 Fire 928 | . 13 4 12 13 . 13 50 30 11 12 3 12 6 24 . 8 25 26 4 . 52 3 47 3 4 11 35 55 43 4 57 54 294 Melee 52 | . . . . . . . . 23 . . 1 . . 7 . . 5 . . 1 1 14 . . . . . . . . . . . Ram . | . . . . . . . . . . . . . . . . . . . . . . . . . . . . . . . . . . Kick 6 | . . . . . . . . 2 . . . . . . . . . . . . 2 . . . . . . . . . . 2 . Crush . | . . . . . . . . . . . . . . . . . . . . . . . . . . . . . . . . . . Escape Stasis 26 | . . . . . . . . . . . . . . . . . . . . . . . . . . . . . . . . . 26 Rewire 32 | . . . . . . . . . 32 . . . . . . . . . . . . . . . . . . . . . . . . Trap . | . . . . . . . . . . . . . . . . . . . . . . . . . . . . . . . . . . Miscellaneous 609 | . 6 . 11 15 . 18 24 31 10 15 . 4 . 5 . . 22 7 19 . 108 . 17 19 17 . 38 42 28 . 50 14 89 Route ------- -11/Scrapyard -10/Materials -10/Mines -9/Materials (discovered 2 exits: *Min x2) -9/Mines (discovered 3 exits: *Mat x2 / *Exi) -9/Exiles (discovered 2 exits: [*Min x2]) -8/Mines -8/Materials -7/Factory (discovered 5 exits: *Fac / *Sto x2 / *Low x2) -7/Lower Caves -7/Lower Caves (discovered 2 exits: *Fac / *Dat) -7/Data Miner -6/Proximity Caves -6/Factory (discovered 3 exits: Fac / *Low x2) -6/Lower Caves -6/Lower Caves (discovered 2 exits: *Fac / *Zio) -6/Zion -5/Proximity Caves -5/Factory (discovered 4 exits: Fac / *Upp x2 / Ext) -5/Upper Caves -5/Upper Caves (discovered 2 exits: *Fac / *War) -5/Warlord -4/Proximity Caves -4/Factory (discovered 2 exits: *Upp x2) -4/Upper Caves -4/Upper Caves (discovered 2 exits: *Res / *Zhi) -4/Zhirov -3/Proximity Caves -3/Research (discovered 2 exits: *Arm / [Qua]) -3/Armory -3/Lab -2/Research (discovered 3 exits: *Acc x3) -1/Access -1/Command (discovered 2 exits: [*Sur x2]) History --------- Turn | Location | Event 1 | -11/Scrapyard | Discovered new exit (range 1) 3 | -11/Scrapyard | Upgraded with Propulsion slot (x1) 3 | -11/Scrapyard | Upgraded with Weapon slot (x1) 17 | -11/Scrapyard | Entered Materials 154 | -10/Materials | Discovered new exit (range 16) 205 | -10/Materials | Entered Mines 211 | -10/Mines | Assisted by bots powering up and referring to "LRC-V3" 250 | -10/Mines | Upgraded with Utility slot (x1) 315 | -10/Mines | Build established: Mutant 355 | -10/Mines | Discovered new exit (range 11) 358 | -10/Mines | Met a Derelict testing a Signal Generator 379 | -10/Mines | Entered Materials 379 | -9/Materials | Accompanied by 4 allies 381 | -9/Materials | Reached level 2 411 | -9/Materials | Identified exit to Mines 467 | -9/Materials | Reached level 3 588 | -9/Materials | Entered Mines 588 | -9/Mines | Accompanied by 4 allies 590 | -9/Mines | Reached level 4 627 | -9/Mines | Discovered new exit (range 10) 751 | -9/Mines | Deemed a non-threat by the Exiles lab entrance 752 | -9/Mines | Discovered new exit (range 5) 794 | -9/Mines | Learned Materials terminal intel 812 | -9/Mines | Learned Materials security intel 818 | -9/Mines | Received a Rocket Launcher from a helpful Derelict 1087 | -9/Mines | Reached level 5 1102 | -9/Mines | Discovered new exit (range 10) 1213 | -9/Mines | Entered Exiles 1213 | -9/Exiles | Accompanied by 3 allies 1231 | -9/Exiles | Discovered new exit (range 15) 1246 | -9/Exiles | Met 8R-AWN 1264 | -9/Exiles | Met EX-HEX 1296 | -9/Exiles | Met EX-BIN 1368 | -9/Exiles | Aligned with FarCom system 1369 | -9/Exiles | Given EX-Vault access code 1398 | -9/Exiles | Opened EX-Vault 1408 | -9/Exiles | Found Potential Leg 1410 | -9/Exiles | Found Potential Leg 1430 | -9/Exiles | Warned to stay clear of 0b10 Research branches 1459 | -9/Exiles | Met EX-DEC 1464 | -9/Exiles | Learned location of Zion (-6) 1491 | -9/Exiles | Discovered new exit (range 12) 1531 | -9/Exiles | Left Exiles lab with Potential Leg 1531 | -9/Exiles | Entered Mines 1531 | -8/Mines | Accompanied by 3 allies 1581 | -8/Mines | Reached level 6 1603 | -8/Mines | Upgraded with Utility slot (x1) 1819 | -8/Mines | Discovered new exit (range 9) 1828 | -8/Mines | Entered Materials 1830 | -8/Materials | Loaded intel: 12 terminal locations 1830 | -8/Materials | Reached level 7 1843 | -8/Materials | Build established: Scavenger-Mutant 1845 | -8/Materials | Upgraded with Utility slot (x1) 1996 | -8/Materials | Reached level 8 2053 | -8/Materials | Upgraded with Utility slot (x1) 2103 | -8/Materials | Discovered new exit (range 15) 2229 | -8/Materials | Garrison activated, responded to threat 2235 | -8/Materials | Core integrity fell below 50% 2239 | -8/Materials | Core integrity fell below 20% 2250 | -8/Materials | Reached level 9 2281 | -8/Materials | Destroyed 9 combat bots 2372 | -8/Materials | Identified exit to Factory 2373 | -8/Materials | Entered Factory 2374 | -7/Factory | Core integrity fell below 50% 2375 | -7/Factory | Reached level 10 2421 | -7/Factory | Core integrity fell below 20% 2674 | -7/Factory | Reached level 11 2767 | -7/Factory | Identified exit to Storage 2767 | -7/Factory | Identified exit to Lower Caves 3028 | -7/Factory | Discovered new exit (range 16) 3120 | -7/Factory | Build established: Mutant 3197 | -7/Factory | Entered Lower Caves 3202 | -7/Lower Caves | Spotted B-75 Beast 3237 | -7/Lower Caves | Attacked by a delusional Derelict stockpiling Unaware 3320 | -7/Lower Caves | Encountered a Warlord checkpoint 3458 | -7/Lower Caves | Reached level 12 3501 | -7/Lower Caves | Discovered new exit (range 6) 3504 | -7/Lower Caves | Identified exit to Lower Caves 3513 | -7/Lower Caves | Entered another Lower Caves area 3513 | -7/Lower Caves | Accompanied by 3 allies 3514 | -7/Lower Caves | P-60 Hacker assimilated allied SE-VE3(g) 3522 | -7/Lower Caves | Discovered new exit (range 6) 3752 | -7/Lower Caves | Reached level 13 3788 | -7/Lower Caves | Learned Factory emergency access door positions 3901 | -7/Lower Caves | Discovered new exit (range 9) 3904 | -7/Lower Caves | Upgraded with Utility slot (x1) 3927 | -7/Lower Caves | Identified exit to Data Miner 3929 | -7/Lower Caves | Entered Data Miner 3929 | -7/Data Miner | Accompanied by 2 allies 3929 | -7/Data Miner | Discovered new exit (range 6) 3947 | -7/Data Miner | Met Data Miner 3962 | -7/Data Miner | Learned location of Section 7 (-3) 3962 | -7/Data Miner | Acquired the access code to Warlord's prototype stash 3976 | -7/Data Miner | Received God Mode back door access code from Data Miner 3998 | -7/Data Miner | Reached level 14 3998 | -7/Data Miner | Interfaced with the Data Conduit 4021 | -7/Data Miner | Identified exit to Proximity Caves 4021 | -7/Data Miner | Entered Proximity Caves 4023 | -6/Proximity Caves | Reached level 15 4047 | -6/Proximity Caves | Learned location of 2 exits from Factory 4166 | -6/Proximity Caves | Learned Factory stockpile data 4183 | -6/Proximity Caves | Spotted B-75 Beast 4214 | -6/Proximity Caves | Reached level 16 4376 | -6/Proximity Caves | Destroyed B-75 Beast 4533 | -6/Proximity Caves | Discovered new exit (range 8) 4538 | -6/Proximity Caves | Identified exit to Factory 4545 | -6/Proximity Caves | Entered Factory 4546 | -6/Factory | Identified exit to Lower Caves 4546 | -6/Factory | Core integrity fell below 50% 4546 | -6/Factory | Core integrity fell below 20% 4547 | -6/Factory | Identified exit to Factory 4547 | -6/Factory | Reached level 17 4550 | -6/Factory | Loaded intel: 247 machine locations 4614 | -6/Factory | Upgraded with Utility slot (x1) 4615 | -6/Factory | Found Hvy. Reflective Plating 4642 | -6/Factory | Upgraded with Utility slot (x1) 4672 | -6/Factory | Entered Lower Caves 4683 | -6/Lower Caves | Weapon Cycler stolen by Master Thief 4772 | -6/Lower Caves | Spotted B-75 Beast 4999 | -6/Lower Caves | Learned location of 2 exits from Factory 5121 | -6/Lower Caves | Encountered a Warlord checkpoint 5382 | -6/Lower Caves | Reached level 18 5425 | -6/Lower Caves | Discovered new exit (range 7) 5449 | -6/Lower Caves | Identified exit to Lower Caves 5449 | -6/Lower Caves | Entered another Lower Caves area 5460 | -6/Lower Caves | Discovered exit to Factory (range 9) 5466 | -6/Lower Caves | Learned 4 Factory zone layouts 5590 | -6/Lower Caves | Learned Factory terminal intel 5644 | -6/Lower Caves | Upgraded with Utility slot (x1) 5666 | -6/Lower Caves | Discovered new exit (range 9) 5673 | -6/Lower Caves | Encountered a Warlord checkpoint 5788 | -6/Lower Caves | Identified exit to Zion 5789 | -6/Lower Caves | Entered Zion 5819 | -6/Zion | Discovered new exit (range 15) 6025 | -6/Zion | Upgraded with Utility slot (x1) 6336 | -6/Zion | Build established: Derelict-Mutant 6491 | -6/Zion | Gained Derelict followers 6624 | -6/Zion | Identified exit to Proximity Caves 6654 | -6/Zion | Entered Proximity Caves 6654 | -5/Proximity Caves | Accompanied by 6 allies 6656 | -5/Proximity Caves | Reached level 19 7111 | -5/Proximity Caves | Received a Behemoth hack from an annoying Tinkerer 7185 | -5/Proximity Caves | Reached level 20 7217 | -5/Proximity Caves | Upgraded with Weapon slot (x1) 7268 | -5/Proximity Caves | Discovered exit to Factory (range 17) 7329 | -5/Proximity Caves | Entered Factory 7329 | -5/Factory | Accompanied by 2 allies 7330 | -5/Factory | Identified exit to Upper Caves 7330 | -5/Factory | Core integrity fell below 50% 7331 | -5/Factory | Identified exit to Factory 7331 | -5/Factory | Identified exit to Extension 7333 | -5/Factory | Loaded intel: 293 machine locations 7334 | -5/Factory | Loaded intel: 22 terminal locations 7502 | -5/Factory | Upgraded with Power slot (x1) 7569 | -5/Factory | Reached level 21 7578 | -5/Factory | Core integrity fell below 20% 7616 | -5/Factory | Build established: Derelict-Skirmisher 7706 | -5/Factory | Entered Upper Caves 7738 | -5/Upper Caves | Encountered a Warlord checkpoint 7772 | -5/Upper Caves | Spotted B-75 Beast 7839 | -5/Upper Caves | Destroyed B-75 Beast 7974 | -5/Upper Caves | Build established: Scavenger-Skirmisher 8193 | -5/Upper Caves | Discovered new exit (range 8) 8222 | -5/Upper Caves | Identified exit to Upper Caves 8222 | -5/Upper Caves | Entered another Upper Caves area 8232 | -5/Upper Caves | Discovered exit to Factory (range 12) 8513 | -5/Upper Caves | Discovered new exit (range 13) 8524 | -5/Upper Caves | Upgraded with Utility slot (x1) 8718 | -5/Upper Caves | Identified exit to Warlord 8719 | -5/Upper Caves | Entered Warlord 8743 | -5/Warlord | System corruption cleaned by Quarantine Array 8804 | -5/Warlord | Visited the Vortex Lab 8811 | -5/Warlord | Found Prototype Energy Gun 8811 | -5/Warlord | Identified Vortex Rail 8812 | -5/Warlord | Warlord's base attacked by MAIN.C 8835 | -5/Warlord | Build established: Derelict-Skirmisher 8903 | -5/Warlord | Met Warlord 8911 | -5/Warlord | Opened Warlord's prototype stash 8915 | -5/Warlord | Found Vortex Chain Reactor 8916 | -5/Warlord | Upgraded with Propulsion slot (x2) 8930 | -5/Warlord | Found Spectral Analyzer 8937 | -5/Warlord | Found Exp. Focal Shield 9101 | -5/Warlord | Reached level 22 9139 | -5/Warlord | Spotted Executioner 9152 | -5/Warlord | Destroyed Executioner 9162 | -5/Warlord | Warlord forces counterattacked 9184 | -5/Warlord | Spotted Striker 9252 | -5/Warlord | Found Adv. Kinecellerator 9303 | -5/Warlord | Discovered new exit (range 15) 9312 | -5/Warlord | Spotted Executioner 9363 | -5/Warlord | Destroyed 7 combat bots 9423 | -5/Warlord | Spotted Striker 9487 | -5/Warlord | Warlord base infiltrated, sounded retreat 9555 | -5/Warlord | Build established: Scavenger-Skirmisher 9686 | -5/Warlord | Spotted Striker 9687 | -5/Warlord | Spotted Striker 9703 | -5/Warlord | Spotted Striker 9703 | -5/Warlord | Spotted Executioner 9751 | -5/Warlord | Reached level 23 9753 | -5/Warlord | Identified exit to Proximity Caves 9753 | -5/Warlord | Entered Proximity Caves 9912 | -4/Proximity Caves | Spotted B-86 Titan 9930 | -4/Proximity Caves | Build established: Scavenger-Assassin 10090 | -4/Proximity Caves | Upgraded with Utility slot (x1) 10144 | -4/Proximity Caves | Attracted the attention of an 0b10 checkpoint 10153 | -4/Proximity Caves | Discovered exit to Factory (range 13) 10201 | -4/Proximity Caves | Learned Research stockpile data 10209 | -4/Proximity Caves | Learned Research emergency access door positions 10354 | -4/Proximity Caves | Entered Factory 10355 | -4/Factory | Loaded intel: 263 machine locations 10355 | -4/Factory | Core integrity fell below 50% 10356 | -4/Factory | Reached level 24 10447 | -4/Factory | Found Prototype Device 10447 | -4/Factory | Identified Active Sensor Suite 10599 | -4/Factory | Found EM Disruption Field 10663 | -4/Factory | Build established: Scavenger-Skirmisher 11105 | -4/Factory | Identified exit to Upper Caves 11193 | -4/Factory | Reached level 25 11219 | -4/Factory | Garrison activated, responded to threat 11253 | -4/Factory | Destroyed 8 combat bots 11325 | -4/Factory | Entered Upper Caves 11327 | -4/Upper Caves | Attracted the attention of an 0b10 checkpoint 11383 | -4/Upper Caves | Learned Research garrison access intel 11747 | -4/Upper Caves | Encountered a Warlord checkpoint 11753 | -4/Upper Caves | Learned Research terminal intel 11840 | -4/Upper Caves | Discovered new exit (range 12) 11857 | -4/Upper Caves | Identified exit to Upper Caves 11873 | -4/Upper Caves | Entered another Upper Caves area 11963 | -4/Upper Caves | Discovered new exit (range 16) 12246 | -4/Upper Caves | Learned Research terminal intel 12257 | -4/Upper Caves | Discovered new exit (range 8) 12279 | -4/Upper Caves | Identified exit to Zhirov 12290 | -4/Upper Caves | Attracted the attention of an 0b10 outpost 12297 | -4/Upper Caves | Entered Zhirov 12297 | -4/Zhirov | Discovered new exit (range 3) 12315 | -4/Zhirov | Met Zhirov 12323 | -4/Zhirov | Build established: Scavenger-Mutant 12340 | -4/Zhirov | Zhirov requested help retrieving the SGEMP Prototype 12355 | -4/Zhirov | Found Alien Artifact 12355 | -4/Zhirov | Identified Integrated Reactor 12355 | -4/Zhirov | Installed Integrated Reactor, increased core energy generation (+10) 12520 | -4/Zhirov | Identified exit to Proximity Caves 12521 | -4/Zhirov | Entered Proximity Caves 12523 | -3/Proximity Caves | Reached level 26 12792 | -3/Proximity Caves | Upgraded with Utility slot (x1) 12833 | -3/Proximity Caves | Build established: Scavenger-Skirmisher 13086 | -3/Proximity Caves | Reached level 27 13354 | -3/Proximity Caves | Discovered new exit (range 4) 13356 | -3/Proximity Caves | Identified exit to Research 13426 | -3/Proximity Caves | Entered Research 13427 | -3/Research | Identified exit to Armory 13430 | -3/Research | Loaded intel: 122 machine locations 13431 | -3/Research | Loaded intel: 20 terminal locations 13432 | -3/Research | Loaded intel: 3 garrison access locations 13534 | -3/Research | Discovered new exit (range 13) 13840 | -3/Research | Reached level 28 13924 | -3/Research | Intercept squad dispatched 13932 | -3/Research | Spotted Tracker 13950 | -3/Research | Destroyed Tracker 13970 | -3/Research | Spotted Combat Programmer 13977 | -3/Research | Destroyed Combat Programmer 13992 | -3/Research | Found Exp. Target Analyzer 14001 | -3/Research | Found Prototype Energy Cannon 14003 | -3/Research | Identified EMDS 14040 | -3/Research | Upgraded with Power slot (x1) 14185 | -3/Research | Cargo convoy interrupted 14190 | -3/Research | Spotted Striker 14191 | -3/Research | Spotted Striker 14194 | -3/Research | Destroyed Striker 14196 | -3/Research | Spotted Striker 14204 | -3/Research | Destroyed Striker 14212 | -3/Research | Allies destroyed Striker 14235 | -3/Research | Garrison activated, responded to threat 14247 | -3/Research | Reached level 29 14265 | -3/Research | Found Beam Splitter 14268 | -3/Research | Found Exp. Shock Absorption System 14333 | -3/Research | Build established: Generator-Skirmisher 14342 | -3/Research | Spotted B-86 Titan 14416 | -3/Research | Upgraded with Utility slot (x1) 14462 | -3/Research | Intercept squad dispatched 14483 | -3/Research | Spotted Tracker 14483 | -3/Research | Entered Armory 14484 | -3/Armory | Loaded intel: 83 machine locations 14869 | -3/Armory | Found Fusion Bomb Launcher 14983 | -3/Armory | First assault squad dispatched 15270 | -3/Armory | Discovered new exit (range 13) 15300 | -3/Armory | Spotted B-86 Titan 15314 | -3/Armory | Intercept squad dispatched 15327 | -3/Armory | Entered Lab 15327 | -3/Lab | Discovered new exit (range 9) 15329 | -3/Lab | Reached level 30 15338 | -3/Lab | Hidden lab's door opened automatically 15338 | -3/Lab | Sensor layout match revealed 15339 | -3/Lab | Gained access to the hidden lab's interior 15377 | -3/Lab | Decrypted terminal 15411 | -3/Lab | Found Prototype Device 15411 | -3/Lab | Identified AEGIS Remote Shield 15420 | -3/Lab | Found Prototype Hackware 15420 | -3/Lab | Identified Quantum Router 15446 | -3/Lab | Build established: Generator-Tank 15465 | -3/Lab | Found Prototype Energy Gun 15465 | -3/Lab | Identified Tachyon Dispersion Ray 15469 | -3/Lab | Found Prototype Energy Cannon 15469 | -3/Lab | Identified Warp Cannon 15503 | -3/Lab | Found Alien Artifact 15503 | -3/Lab | Identified Core Expander 15503 | -3/Lab | Installed Core Expander, added new Weapon slot 15523 | -3/Lab | Found Alien Artifact 15523 | -3/Lab | Identified Integrated Dissipator 15523 | -3/Lab | Installed Integrated Dissipator, increased core heat dissipation (+20) 15568 | -3/Lab | Found Alien Artifact 15568 | -3/Lab | Identified Transdimensional Reconstructor 15568 | -3/Lab | Warped through subspace 15609 | -3/Lab | Found Alien Artifact 15621 | -3/Lab | Decrypted terminal 15624 | -3/Lab | Decrypted terminal 15624 | -3/Lab | Opened the door to a hidden lab 15763 | -3/Lab | Build established: Generator-Mutant 15778 | -3/Lab | Entered Research 15779 | -2/Research | Loaded intel: 110 machine locations 15780 | -2/Research | Loaded intel: 20 terminal locations 15780 | -2/Research | Reached level 31 15877 | -2/Research | Identified exit to Access 16083 | -2/Research | Destroyed 8 combat bots 16366 | -2/Research | Entered Access 16367 | -1/Access | Loaded intel: 111 machine locations 16368 | -1/Access | Reached level 32 16368 | -1/Access | Reached level 33 16556 | -1/Access | Garrison activated, responded to threat 16817 | -1/Access | Reached level 34 16835 | -1/Access | Destroyed 8 combat bots 16935 | -1/Access | Discovered new exit (range 8) 16941 | -1/Access | Entered Command 16942 | -1/Command | Loaded intel: 65 machine locations 17036 | -1/Command | Reached level 35 17065 | -1/Command | Destroyed 9 combat bots 17216 | -1/Command | First assault squad dispatched 17281 | -1/Command | Destroyed 9 combat bots 17330 | -1/Command | Spotted M Guard 17338 | -1/Command | Spotted Combat Programmer 17341 | -1/Command | Spotted Combat Programmer 17341 | -1/Command | Destroyed Combat Programmer 17352 | -1/Command | Spotted M Guard 17355 | -1/Command | Destroyed Combat Programmer 17396 | -1/Command | Destroyed M Guard 17396 | -1/Command | All MAIN.C guards destroyed 17453 | -1/Command | Met MAIN.C 17463 | -1/Command | 0b10 Conduit disabled 17510 | -1/Command | Reached level 36 17510 | -1/Command | Destroyed MAIN.C Shell 17512 | -1/Command | MAIN.C activated Command garrisons 17575 | -1/Command | Core integrity fell below 50% 17606 | -1/Command | Destroyed MAIN.C 17637 | -1/Command | Found Zero-point Reactor 17641 | -1/Command | Found Prototype Protection 17641 | -1/Command | Identified Exp. Powered Armor 17653 | -1/Command | Found Centrium Heavy Armor Plating 17681 | -1/Command | Build established: Scavenger-Tank 17709 | -1/Command | Reached level 37 17991 | -1/Command | Spotted B-99 Colossus 18027 | -1/Command | Destroyed B-99 Colossus 18048 | -1/Command | Found Prototype Ballistic Gun 18048 | -1/Command | Identified Multirail 18108 | -1/Command | Discovered new exit (range 8) 18366 | -1/Command | Spotted B-99 Colossus 18492 | -1/Command | Destroyed B-99 Colossus 18715 | -1/Command | Spotted B-99 Colossus 18762 | -1/Command | Destroyed B-99 Colossus 19125 | -1/Command | Build established: Scavenger-Mutant 19339 | -1/Command | Phase Generator disabled 19576 | -1/Command | Discovered new exit (range 8) 20680 | -1/Command | Build established: Scavenger-Tank 21159 | -1/Command | Crushed by falling debris 21259 | -1/Command | Crushed by falling debris 21375 | -1/Command | Crushed by falling debris 21376 | -1/Command | Crushed by falling debris 21377 | -1/Command | Core integrity fell below 20% 21458 | -1/Command | Crushed by falling debris 21464 | -1/Command | Crushed by falling debris 21464 | -1/Command | Smashed by cave-in Last Messages --------------- 20932_ Identified Centrium Medium Armor Plating. 20934_ Dropped Centrium Medium Armor Plating. 20935_ Acquired Centrium Heavy Armor Plating. 20939_ Acquired 20 matter. 21102_ ALERT: Security rotation in progress. 21159_ The unstable cave ceiling collapses. 21159_ Crushed by falling debris. 21230_ Slug penetrates Wall. 21259_ The unstable cave ceiling collapses. 21259_ Crushed by falling debris. 21375_ The unstable cave ceiling collapses. 21375_ Crushed by falling debris. 21376_ The unstable cave ceiling collapses. 21376_ Crushed by falling debris. 21380_ Warp Cannon suddenly breaks down. 21381_ Slug penetrates Earth. 21458_ The unstable cave ceiling collapses. 21458_ Crushed by falling debris. 21464_ The unstable cave ceiling collapses. 21464_ Crushed by falling debris. Map ----- +----------------------------------------------------+ | ?????#??#?##########################+##+#/# | | ????##?#?#?####?##?################" % | | ????##?#?######?#################### % | | ??##?###????#?###################### | | ????#?###?#??####################### "######### # | | ?#??#?#?#??###?##################### ########## # | | ???###???########################### ############# | | ###?##?#########?################### ############# | | ###?###??##?######################## ############# | | #??#################################+############# | | ????####?#?##?################### = ######## | | #?########????################### ######## | | #??#?###??####?##################[ " ######## | | ?##?###?######################### """" ######## | | #?###?????###### " """" # | | ######?#??####################### "" ######## | | ####?#?#?######################## ######## | | ?#####?########################## ######## | | ########?###?###################;################# | | ??##?????#?###?################ ################## | | ?###??##?##################### ################### | | ????##########?############## #################### | | ####?#####?################# ###############?##### | | ?##?#?####?################ ###################### | | ??######?################# ####################### | | ???###?##################@######################## | | ??????#?################ ########################? | | ????##??######?######## ########################?# | | ???################### #########################?? | | ???##?#?#######?##?## #########################??? | | ??###?#?##?####?#### #####?###################?#?? | | ????##?#?################?##################?????? | | ???###??##??##?##??###?####################??????? | | ???#?#?#??#?###??##??####################????????? | | ?????????##?####?#?########??######?###??????????? | | ????#####?##??##??####????#?###?#####????????????? | | ????#######?####?#######?#?###???##???#??????????? | | ????##?####????#?########?##??#???###????????????? | | ?????#?#???#?#############?##?#?######???????????? | | ?????#?#?##?##???#?#?##??#?#?#?#?###?????????????? | | ???????##?#??#?#?##?###??#??##??####?????????????? | | ??????##??###?#???####?#######?##????????????????? | | ????????#????#?###?#??####?????##????????????????? | | ????????#?##???#####?##?###?##??#????????????????? | | ??????????#??#??##?#??##??#???#??????????????????? | | ???????????#?###?####??###??#????????????????????? | | ????????????###?#????#?#?#?##????????????????????? | | ????????????????######?##????????????????????????? | | ????????????????????#????????????????????????????? | | ?????????????????????????????????????????????????? | +----------------------------------------------------+ Best States ------------- Heat Dissipation 99 Energy Generation 93 Energy Capacity 1440 Matter Stores 550 Matter Capacity 550 Sight Range 25 Robot Scan Range 24 Terrain Scan Range 18 Terrain Scan Density 210 Armor Coverage 600 Resistance: KI 30 Resistance: TH 75 Resistance: EX 75 Resistance: EM 50 Power Shielding 33 Weapon Cycling 25 Phase Shifting 15 Evasion (%) 79 Targeting Accuracy 12 Target Analysis 10 Armor Integrity Analysis 40 Particle Charging 25 Kinecelleration 50 Salvage Targeting 4 Offensive Hacking 20 Defensive Hacking 30 Item Schematics ----------------- Combat Drone Bay | -7/Data Miner | Free Lgt. Regenerative Plating | -7/Data Miner | Free Exp. Flexi-carbon Leg | -7/Data Miner | Free Exp. Terrain Scanner | -7/Data Miner | Free Exp. Transmission Jammer | -7/Data Miner | Free Cloaking Device | -7/Data Miner | Free Enh. Autogun | -5/Factory | Hacked Assault Drone Bay | -4/Zhirov | Free Exp. Heat Sink | -4/Zhirov | Free Exp. Optical Array | -4/Zhirov | Free Imp. Arc Thrower | -4/Zhirov | Free Robot Schematics ------------------ S-27 Virus | -7/Data Miner | Free G-50 Soldier | -7/Data Miner | Free X-72 Disruptor | -7/Data Miner | Free P-70 Sage | -7/Data Miner | Free I-36 Angel | -7/Data Miner | Free Fabricated ------------ Nothing Alien Tech Used ----------------- Integrated Reactor Core Expander Integrated Dissipator Transdimensional Reconstructor Achievements -------------- None Challenges ------------ None RPGLIKE | -11 -10 -10 -9 -9 -9 -8 -8 -7 -7 -7 -7 -6 -6 -6 -6 -6 -5 -5 -5 -5 -5 -4 -4 -4 -4 -4 -3 -3 -3 -3 -2 -1 -1 --------- Run | Scr Mat Min Mat Min Exi Min Mat Fac Low Low Dat Pro Fac Low Low Zio Pro Fac Upp Upp War Pro Fac Upp Upp Zhi Pro Res Arm Lab Res Acc Com Levels Raised 36 | . . . 2 2 . 1 3 2 1 1 1 2 1 1 . . 2 1 . . 2 . 2 . . . 2 2 . 1 1 3 3 XP Earned 57244 | 3000 250 746 3018 2433 350 1445 4345 2962 1535 1668 2150 2025 1604 1055 244 244 2730 1594 316 244 2066 941 2300 203 170 220 2206 3313 916 1221 1796 3302 4632 XP Spent 51385 | 1000 250 1000 . 750 . 800 4135 . . 2600 . . 4675 2360 2600 2900 925 1750 . 3200 1900 3780 . 90 1500 . 3800 4900 . 100 2800 1100 2470 Upgrades 70 | 2 1 2 . 1 . 1 13 . . 3 . . 5 11 1 1 3 2 . 1 2 3 . 1 1 . 1 2 . 1 6 1 5 Power Slot 2 | . . . . . . . . . . . . . . . . . . 1 . . . . . . . . . 1 . . . . . Propulsion Slot 3 | 1 . . . . . . . . . . . . . . . . . . . . 2 . . . . . . . . . . . . Utility Slot 13 | . . 1 . . . 1 2 . . 1 . . 2 . 1 1 . . . 1 . 1 . . . . 1 1 . . . . . Weapon Slot 2 | 1 . . . . . . . . . . . . . . . . 1 . . . . . . . . . . . . . . . . Core Integrity 16 | . . . . . . . 9 . . . . . 3 4 . . . . . . . . . . . . . . . . . . . Heat Dissipation 9 | . . . . . . . . . . . . . . 4 . . . . . . . 2 . . . . . . . . . . 3 Mass Support 4 | . . . . . . . . . . . . . . . . . . . . . . . . . . . . . . 1 1 1 1 Inventory Capacity 6 | . 1 1 . 1 . . 1 . . . . . . . . . . 1 . . . . . . 1 . . . . . . . . Sight Range 2 | . . . . . . . . . . . . . . 1 . . . . . . . . . . . . . . . . . . 1 Sensor Range 2 | . . . . . . . . . . . . . . . . . 2 . . . . . . . . . . . . . . . . Terrain Scan Density 2 | . . . . . . . 1 . . . . . . . . . . . . . . . . 1 . . . . . . . . . Ranged Accuracy 4 | . . . . . . . . . . 2 . . . 2 . . . . . . . . . . . . . . . . . . . Hack Attack % 4 | . . . . . . . . . . . . . . . . . . . . . . . . . . . . . . . 4 . . Hack Defense % 1 | . . . . . . . . . . . . . . . . . . . . . . . . . . . . . . . 1 . . Protomatter Created 5542 | . 37 57 17 19 . 68 390 105 57 62 . 43 . 34 . . 133 81 58 . 387 . 345 143 129 . 364 306 349 . 629 374 1355 Integrity Restored 13042 | . 111 . 197 231 . 311 490 660 207 342 . 81 . 102 . . 495 123 414 . 2408 . 396 429 387 . 866 864 644 . 1046 308 1930 Core 10238 | . 102 . 109 141 . 174 394 660 207 342 . 81 . 102 . . 495 123 414 . 1698 . 396 429 387 . 558 334 622 . 810 135 1525 Parts 2804 | . 9 . 88 90 . 137 96 . . . . . . . . . . . . . 710 . . . . . 308 530 22 . 236 173 405 Protomatter Decayed 10541 | . . . 19 38 . 37 84 . . 14 . 16 . . . . . 52 . . 1291 . 213 . . . 73 177 139 . 175 305 7908 Game ------ Seed MiniNetworkWarhead Manual? 0 Play Time 04:35:35 Cumulative 349.6 hours Start 2021.07.16 @ 05:40:41 End 2021.07.18 @ 01:30:34 Sessions 11 Manual Loads 0 Difficulty Rogue Special Mode Winter2019/RPGLIKE Game No. 178 Rogue 175 Adventurer 1 Explorer 2 Win Type - Total 5 Types 3/1/1/0/0/0/0/0/0 Lore% 82 Gallery% 89 Achievement% 69 Wizard Run 0 Options --------- ASCII 0 Keyboard 1 Movement Numpad Keybinds 1 Fullscreen 1 Font 24/Terminus Map View 76x50 Tactical HUD 1 Map Filters NONE Filters LOW_CONTRAST(0,0,0) Steam 1 RUN: bbb729e2-4484-4bc8-9725-69be8168c37f